Cogmind - Beta 13 X1 @@@ ROGUE MODE // 2023.12.20 @ 11:25:36 Player: IzRey Result: Destroyed by H-77 Assassin with Coil Gun Performance ------------- Evolutions (7) 3500 Regions Visited (14) 2800 Robots Destroyed (284) 1420 Value Destroyed (13549) 13549 Prototype IDs (27) 540 Alien Tech Used (0) 0 Bonus (3093) 3093 TOTAL SCORE: 24902 Bonus ------- High Alert Combat Kills 1065 Follower Combat Kills 1597 Met Data Miner 300 Scanned by Researcher 500 Friendly Fire -369 Cogmind --------- Core Integrity 0/1300 Matter 293/300 Energy 3/100 System Corruption 45% Temperature Cool (0) Movement Core (700) Ox13 Location -3/Testing Parts ------- > --- POWER (2) -------- (None) > --- PROPULSION (6) --- Improved Heavy Treads > --- UTILITY (9) ------ Advanced Heat Sink Medium Storage Unit Advanced Signal Interpreter 0b10 Decoder Chip [Looter] Advanced Target Analyzer Medium Regenerative Plating Heavy Regenerative Plating Hacking Suite > --- WEAPON (4) ------- (None) > --- INVENTORY (10) --- Myomer Leg Advanced Matter Compressor (116) Structural Scanner Light Regenerative Plating Peak State ------------ > --- POWER ------------ Enhanced Fission Core Heavy Antimatter Reactor > --- PROPULSION ------- Armored Heavy Treads Armored Heavy Treads Armored Heavy Treads > --- UTILITY ---------- Medium Storage Unit Advanced Matter Compressor Long-range Sensor Array Advanced Signal Interpreter 0b10 Decoder Chip [Looter] Advanced Target Analyzer Medium Regenerative Plating Advanced Force Field Hacking Suite > --- WEAPON ----------- Quantum Rifle Molecular Deconstructor Phasing Sabre > --- INVENTORY -------- Improved Heavy Treads Improved Heavy Treads Improved Heavy Treads Structural Scanner Structural Scanner Micro-nuke Launcher [Rating: 151] Favorites ----------- Power Light Angular Momentum Engine Engine Light Angular Momentum Engine Power Core Enhanced Fission Core Reactor Heavy Antimatter Reactor Propulsion Advanced Treads Treads Advanced Treads Leg Improved Carbon-fiber Leg Wheel Wheel Hover Unit Antigrav System Utility Large Storage Unit Device Advanced Heat Sink Storage Large Storage Unit Processor Improved Signal Interpreter Hackware Hacking Suite Protection Improved Medium Armor Plating Weapon KE Penetrator Energy Gun Improved Spread Laser Energy Cannon Advanced Plasma Cannon Ballistic Gun KE Penetrator Ballistic Cannon Heavy Gauss Cannon Launcher Precision Rocket Launcher Special Weapon Molecular Deconstructor Slashing Weapon Katana Build | -11 -10 -9 -8 -7 -6 -6 -6 -6 -5 -5 -5 -4 -3 -3 ------- Run | Jun Mat Mat Mat Fac Fac Low Low Dat Pro Fac Ext Fac Res Tes Slots Evolved 14 | . . 2 2 2 2 . . . . 2 . 2 2 . Power 1 | . . . . . . . . . . 1 . . . . Propulsion 4 | . . 2 . . 1 . . . . 1 . . . . Utility 7 | . . . 2 1 1 . . . . . . 1 2 . Weapon 2 | . . . . 1 . . . . . . . 1 . . Parts Attached 514 | . 6 6 81 54 43 14 19 4 14 63 40 6 84 80 Power 30 | . 1 1 3 . 4 . 1 . . 10 2 . 4 4 Engine 11 | . 1 1 3 . 1 . . . . 5 . . . . Core 11 | . . . . . 3 . 1 . . 4 2 . 1 . Reactor 8 | . . . . . . . . . . 1 . . 3 4 Propulsion 83 | . 2 4 24 1 1 1 2 1 2 17 11 2 5 10 Treads 55 | . 2 2 19 1 1 1 2 . 1 2 8 1 5 10 Leg 10 | . . 1 5 . . . . 1 . . 3 . . . Wheel 4 | . . 1 . . . . . . 1 2 . . . . Hover 14 | . . . . . . . . . . 13 . 1 . . Flight . | . . . . . . . . . . . . . . . Utility 230 | . 2 1 32 30 21 6 9 . 7 21 11 3 46 41 Device 150 | . 1 1 21 20 16 5 7 . 6 17 1 1 25 29 Storage 17 | . 1 . 1 . . . . . 1 . 2 1 3 8 Processor 9 | . . . 2 . . . . . . 3 . . 3 1 Hackware 1 | . . . . . . . . . . . 1 . . . Protection 53 | . . . 8 10 5 1 2 . . 1 7 1 15 3 Artifact . | . . . . . . . . . . . . . . . Weapon 171 | . 1 . 22 23 17 7 7 3 5 15 16 1 29 25 Energy Gun 18 | . . . 6 . . . . . . 6 1 1 . 4 Energy Cannon 1 | . . . . . . . . . . . . . . 1 Ballistic Gun 82 | . 1 . 7 15 11 4 4 2 1 3 9 . 15 10 Ballistic Cannon 3 | . . . . . . . . . . 3 . . . . Launcher 12 | . . . 2 . 1 1 . . 2 2 1 . 1 2 Special Weapon 3 | . . . . . . 1 . . . . 1 . 1 . Impact Weapon . | . . . . . . . . . . . . . . . Slashing Weapon 52 | . . . 7 8 5 1 3 1 2 1 4 . 12 8 Piercing Weapon . | . . . . . . . . . . . . . . . Special Melee Weapon . | . . . . . . . . . . . . . . . Unidentified Prototypes 17 | . . . 2 1 2 1 . . 1 1 1 1 2 5 Corrupted Parts 2 | . . . . . . . . . . 1 1 . . . System Corruption 4 | . . . . . . . . . . 2 2 . . . Parts Lost 97 | . 2 . 7 . 4 1 6 . 7 32 14 2 1 21 Power 16 | . 1 . 2 . 2 . 1 . 1 5 1 . . 3 Propulsion 32 | . . . . . . 1 3 . 4 13 5 1 1 4 Utility 21 | . . . 3 . 1 . 1 . 1 6 3 1 . 5 Weapon 28 | . 1 . 2 . 1 . 1 . 1 8 5 . . 9 Highest Loss Streak 13 | . 1 . 3 . 2 1 5 . 3 11 6 2 1 13 To Critical Strikes 3 | . . . . . . . . . . 1 2 . . . Average Slot Usage (%) 89 | . 92 98 99 100 97 92 90 76 81 79 90 95 84 78 Engine 2 | . 14 11 8 7 2 . . . . 2 . . . . Core 3 | . . . . . 3 6 6 6 6 6 9 10 2 3 Reactor 1 | . . . . . . . . . . . . . 5 4 Treads 20 | . 20 20 23 30 33 32 31 26 8 5 26 30 14 13 Leg 1 | . 7 11 9 . . . . 1 . . 1 . . . Wheel 1 | . . 11 2 . . . . . 5 4 . . . . Hover 1 | . . . . . . . . . . 9 1 . . . Device 10 | . 6 11 10 13 15 12 13 20 25 13 . 3 8 7 Storage 6 | . 14 11 9 7 6 6 6 6 6 5 4 5 8 6 Processor 10 | . . . 6 7 6 6 6 6 6 11 17 15 14 14 Hackware 1 | . . . . . . . . . . . 4 5 4 4 Protection 5 | . . . 9 8 8 6 6 6 . . 4 5 5 6 Energy Gun 2 | . 18 11 9 1 . . . . . 3 . 1 . 1 Ballistic Gun 9 | . 9 11 6 15 13 13 15 1 7 3 11 15 13 4 Slashing Weapon 2 | . . . 1 5 4 4 2 . 5 2 1 . 2 1 Naked Turns . | . . . . . . . . . . . . . . . Heaviest Build 98 | 11 28 30 45 54 65 67 62 48 55 72 77 80 91 98 Greatest Support 225 | 20 40 20 92 94 116 116 116 86 64 66 138 138 180 225 Greatest Overweight (x) 19 | . . 1 3 . . . . . 5 14 19 1 1 . Average Overweight (x) . | . . 1 . . . . . . 3 2 . . . . Largest Inventory Capacity 15 | . 15 15 15 15 15 15 15 15 15 15 15 10 10 10 Average Capacity 13 | . 10 15 15 15 15 15 15 15 15 15 11 10 10 10 Most Carried 15 | . 14 15 15 15 15 15 15 15 15 15 15 10 10 10 Average Carried 12 | . 8 12 14 14 14 14 14 14 12 13 9 9 9 9 Final Capacity 15 | 8 15 15 15 15 15 15 15 15 15 15 10 10 10 10 Final Carried 15 | 6 14 15 15 15 15 15 15 12 15 13 10 9 10 4 Class Distribution -------------------- 29% | Mutant 14% | Scavenger-Mutant 14% | Scavenger-Skirmisher 13% | Assassin 7% | Scavenger-Gunner 6% | Scavenger-Tank 6% | Scavenger-Assassin 3% | Skirmisher Dominant Class ---------------- Mutant | -10/Materials Mutant | -9/Materials Mutant | -8/Materials Mutant | -7/Factory Assassin | -6/Factory Assassin | -6/Lower Caves Assassin | -6/Lower Caves Mutant | -6/Data Miner Assassin | -5/Proximity Caves Scavenger-Mutant | -5/Factory Scavenger-Mutant | -5/Extension Scavenger-Gunner | -4/Factory Scavenger-Skirmisher | -3/Research Scavenger-Tank | -3/Testing Resources | -11 -10 -9 -8 -7 -6 -6 -6 -6 -5 -5 -5 -4 -3 -3 ----------- Run | Jun Mat Mat Mat Fac Fac Low Low Dat Pro Fac Ext Fac Res Tes Matter Collected 13252 | 200 78 66 1583 825 906 538 391 . 539 1003 1694 603 2683 2143 Remotely 353 | . . . . . . . . . . . . 353 . . Salvage Created 12535 | . 424 158 1663 742 580 335 554 . 469 868 1956 421 1948 2417 Parts 655 | . 18 11 84 56 26 22 18 . 13 56 87 24 107 133 Haulers Intercepted 5 | . . . 4 . . . . . . . 1 . . . Recyclers Shooed 5 | . . . 1 . . . . . . 1 . 3 . . Parts Field Recycled . | . . . . . . . . . . . . . . . Retrieved Matter . | . . . . . . . . . . . . . . . Parts Self-Destructed 54 | . . . . . . 25 16 . 13 . . . . . Prevented 2 | . . . . . . . . . 2 . . . . . Kills | -11 -10 -9 -8 -7 -6 -6 -6 -6 -5 -5 -5 -4 -3 -3 ------- Run | Jun Mat Mat Mat Fac Fac Low Low Dat Pro Fac Ext Fac Res Tes Combat Hostiles Destroyed 223 | . 10 5 40 16 8 9 8 . 10 18 17 6 29 47 Guns 174 | . 10 5 37 16 7 6 8 . 5 14 16 6 28 16 Cannons 7 | . . . . . . . . . . 1 . . . 6 AOE 23 | . . . 3 . 1 3 . . 5 3 1 . . 7 Classes Destroyed 16 | . 1 2 6 2 . 1 . . 2 . 1 . . 1 Worker 17 | . . . 6 . . . . . . 2 3 1 . 5 Builder 22 | . . . 1 4 2 . . . . 2 6 1 1 5 Tunneler 4 | . . . . . . . . . . . 4 . . . Hauler 5 | . . . 4 . . . . . . . 1 . . . Recycler 8 | . . . . 1 1 . . . . . 4 . 2 . Minesweeper 1 | . . . . . . . . . 1 . . . . . Operator 1 | . . . . . . . . . . . . . . 1 Watcher 3 | . . . 2 . . . . . . . . . 1 . Swarmer 22 | . . 3 9 4 . 3 . . . . . . . 3 Grunt 83 | . 10 . 20 4 2 . 8 . 7 1 9 2 4 16 Brawler 8 | . . . . . . . . . 2 1 4 . . 1 Duelist 4 | . . . 1 . . . . . . . . . . 3 Sentry 23 | . . 2 8 2 1 . . . 1 1 1 . 4 3 Specialist 2 | . . . . . . 2 . . . . . . . . Hunter 12 | . . . 2 . 3 3 . . . 1 . . 2 1 Programmer 68 | . . . . 6 2 1 . . . 14 3 3 19 20 Decomposer 1 | . . . . . . . 1 . . . . . . . Packrat 1 | . . . . . . . 1 . . . . . . . Thug 1 | . . . . . . . . . . . . 1 . . Best Kill Streak 9 | . 3 4 9 5 3 6 4 . 6 5 4 7 4 8 Combat Bots Only 8 | . 3 4 8 5 2 6 4 . 6 3 4 5 4 5 Max Kills in Single Turn 4 | . 1 1 3 2 1 2 1 . 2 2 2 2 1 4 Gunslinging 1 | . . . 1 1 . . . . . . 1 . . . Exploded 3 | . . . 3 . 1 2 . . 2 2 1 . . 2 Melee . | . . . . . . . . . . . . . . . Uniques/NPCs Destroyed . | . . . . . . . . . . . . . . . Combat | -11 -10 -9 -8 -7 -6 -6 -6 -6 -5 -5 -5 -4 -3 -3 -------- Run | Jun Mat Mat Mat Fac Fac Low Low Dat Pro Fac Ext Fac Res Tes Damage Taken 24725 | . 501 174 2314 788 829 1341 466 . 979 3725 1917 863 1913 8915 Core 3175 | . 86 32 265 98 67 35 25 . 95 743 240 188 114 1187 Absorbed by Shields 3169 | . . . . . . . . . . . 171 . 1496 1502 Reduced by Siege Mode 1304 | . . . . . . . . . . . . . 129 1175 Regen/Repaired (Parts) 1305 | . . 238 35 . . . . . . . 71 23 344 594 Core Remaining (%) 68 | 100 65 92 51 86 . . . . 73 . 1 83 . . Volleys Fired 686 | . 40 26 104 32 22 16 18 . 15 114 66 12 78 143 Largest 4 | . 2 2 2 3 3 3 3 . 3 3 3 4 4 4 Hottest 271 | . 80 60 150 128 91 63 63 . 100 190 133 174 174 271 Shots Fired 1590 | . 76 49 205 96 66 42 42 . 34 181 161 45 300 293 Gun 1407 | . 76 49 204 96 66 39 42 . 29 147 152 45 297 165 Cannon 52 | . . . . . . . . . . 25 . . . 27 Launcher 30 | . . . 1 . . 3 . . 5 9 2 . . 10 Special 101 | . . . . . . . . . . . 7 . 3 91 Kinetic 1086 | . 28 26 96 84 66 39 42 . 29 91 145 34 293 113 Thermal 339 | . 39 23 108 12 . . . . . 70 . 11 4 72 Explosive 30 | . . . 1 . . 3 . . 5 9 2 . . 10 Electromagnetic 34 | . 9 . . . . . . . . 11 7 . . 7 Robot Hit Streak 27 | . 8 8 16 9 16 11 13 . 6 9 11 17 27 21 Robot Miss Streak 12 | . 4 7 12 7 2 3 1 . 3 6 3 2 7 4 Penetration Max 1 | . . . . 1 . . 1 . 1 . 1 1 1 . Secondary Targets 27 | . 1 . 6 3 1 2 1 . 1 1 5 2 4 . Max Gunslinging Chain 1 | . 1 . 1 1 1 1 1 . 1 1 1 1 1 . Shots Hit Robots 1141 | . 49 29 164 73 51 30 34 . 28 115 107 32 222 207 Core Hits 683 | . 20 13 181 47 27 16 19 . 28 54 62 16 97 103 Critical Kills 26 | . . . 1 1 . 2 . . . . 4 2 12 4 Critical Parts Destroyed 41 | . . . . . 1 1 . . . 2 6 2 20 9 Critical Strikes 71 | . . . 1 1 1 3 . . . 3 11 5 33 13 Burn 2 | . . . . . . . . . . 1 . 1 . . Destroy 68 | . . . 1 1 1 3 . . . 2 10 4 33 13 Corrupt 1 | . . . . . . . . . . . 1 . . . Melee Attacks 308 | . . . 27 82 42 8 4 . 19 20 21 . 50 35 Impact . | . . . . . . . . . . . . . . . Slashing 308 | . . . 27 82 42 8 4 . 19 20 21 . 50 35 Piercing . | . . . . . . . . . . . . . . . Sneak Attacks 21 | . . . 1 4 4 . 2 . 1 1 2 . 2 4 Combat Hostiles . | . . . . . . . . . . . . . . . Follow-up Attacks . | . . . . . . . . . . . . . . . Damage Inflicted 31258 | . 515 289 3395 1961 1659 918 1115 . 1344 3362 3475 1026 5507 6692 Guns 24037 | . 515 289 3061 1704 992 708 972 . 582 2370 2938 1026 5321 3559 Cannons 751 | . . . . . . . . . . 256 . . . 495 Explosions 4882 | . . . 266 . 403 210 . . 692 674 398 . . 2239 Melee 1580 | . . . 68 257 264 . 143 . 70 58 139 . 186 395 Ramming 8 | . . . . . . . . . . 4 . . . 4 Kinetic 18653 | . 146 130 945 1474 992 708 972 . 582 1516 2757 847 5222 2362 Thermal 6247 | . 276 159 2116 230 262 . . . . 1051 . 179 99 1875 Explosive 4204 | . . . 266 . 32 210 . . 692 674 398 . . 1932 Electromagnetic 566 | . 93 . . . 109 . . . . 59 181 . . 124 Impact . | . . . . . . . . . . . . . . . Slashing 1580 | . . . 68 257 264 . 143 . 70 58 139 . 186 395 Piercing . | . . . . . . . . . . . . . . . Highest Corruption 45 | . . . 9 3 1 3 3 3 3 40 42 3 14 45 Average Corruption 15 | . . . 6 1 1 1 3 3 3 24 41 2 7 26 Corruption Purged 12 | . . . . 6 1 . . . . 5 . . . . Corruption Blocked 15 | . . . . . . . . . . . . . . 15 Effects 652 | . . . 60 4 7 4 20 2 20 98 147 . 121 169 Message Errors 159 | . . . 13 1 3 1 3 . 8 30 31 . 31 38 Matter Fused 138 | . . . 19 . 3 1 3 . 5 24 29 . 23 31 Heat Flow Errors 75 | . . . 8 1 . . 4 . . 10 10 . 15 27 Energy Discharges 71 | . . . 10 1 1 1 2 . 2 7 16 . 17 14 Parts Rejected 14 | . . . . . . . 1 . . 2 5 . . 6 Parts Fused 6 | . . . . . . . . . . 2 . . 2 2 Data Loss (minor) 76 | . . . 5 1 . 1 2 1 4 7 20 . 12 23 Data Loss (major) 30 | . . . 1 . . . 2 1 1 7 8 . 7 3 Misfires 22 | . . . 2 . . . . . . 2 6 . 5 7 Alerts 15 | . . . . . . . 1 . . 1 4 . 4 5 Misdirections 13 | . . . . . . . . . . 2 9 . . 2 Weapon Failures 33 | . . . 2 . . . 2 . . 4 9 . 5 11 Overload Shots . | . . . . . . . . . . . . . . . Overflow Damage 742 | . . . . 46 58 . . . 49 73 78 . 116 322 Projectiles 22 | . . . . . . . . . . 22 . . . . Explosions 316 | . . . . . 20 . . . 49 33 48 . . 166 Melee 404 | . . . . 46 38 . . . . 18 30 . 116 156 Knockbacks 2 | . . . . . . . . . . 2 . . . . Impact . | . . . . . . . . . . . . . . . Kinetic 2 | . . . . . . . . . . 2 . . . . Secondary . | . . . . . . . . . . . . . . . Self-Inflicted Damage 839 | . . . . . 79 41 . . . 164 13 . . 542 Shots 17 | . . . . . 3 1 . . . 5 1 . . 7 Rammed 2 | . . . . . . . . . . 1 . . . 1 Targets Rammed 2 | . . . . . . . . . . 1 . . . 1 Kicked . | . . . . . . . . . . . . . . . Crushed . | . . . . . . . . . . . . . . . Highest Temperature 724 | . 168 6 327 252 30 52 265 . 3 400 333 724 378 663 Average Temperature 115 | . 53 4 82 103 14 22 79 . 2 84 94 363 115 162 Received Heat Transfer 3594 | . 270 27 603 156 78 . 171 . 315 279 585 105 62 943 Effects 70 | . . . . . . . . . . 1 5 25 3 36 Shutdowns 21 | . . . . . . . . . . . . 7 1 13 Energy Bleed 18 | . . . . . . . . . . . 4 3 1 10 Interference 9 | . . . . . . . . . . . 1 5 1 2 Matter Decay 4 | . . . . . . . . . . . . 2 . 2 Short Circuit 5 | . . . . . . . . . . . . 3 . 2 Damage (minor) 5 | . . . . . . . . . . 1 . 1 . 3 Damage (major) 3 | . . . . . . . . . . . . 3 . . Damage (core) 5 | . . . . . . . . . . . . 1 . 4 Siege Activations 32 | . . . . . . . . . . . . . 12 20 Total Turns 1249 | . . . . . . . . . . . . . 414 835 Longest Duration 107 | . . . . . . . . . . . . . 107 101 Robots Corrupted . | . . . . . . . . . . . . . . . Combat Hostiles . | . . . . . . . . . . . . . . . Parts Fried . | . . . . . . . . . . . . . . . Impact Corruptions . | . . . . . . . . . . . . . . . Robots Melted . | . . . . . . . . . . . . . . . Combat Hostiles . | . . . . . . . . . . . . . . . Parts Melted 10 | . 2 . . . . . . . . 7 . . . 1 Heat Transferred 7679 | . 625 350 1780 185 150 . . . . 1776 . 370 148 2295 Parts Sabotaged . | . . . . . . . . . . . . . . . Parts Stolen . | . . . . . . . . . . . . . . . Parts Stripped . | . . . . . . . . . . . . . . . Power Chain Reactions 2 | . . . . . 1 . . . . . . . . 1 Missiles Intercepted . | . . . . . . . . . . . . . . . Alert | -11 -10 -9 -8 -7 -6 -6 -6 -6 -5 -5 -5 -4 -3 -3 ------- Run | Jun Mat Mat Mat Fac Fac Low Low Dat Pro Fac Ext Fac Res Tes Peak Influence 1173 | . 281 248 751 402 448 . . . . 323 652 515 545 1173 Initial 341 | . . 73 20 341 179 . . . . . 158 308 264 301 Average 265 | . 138 167 250 283 269 . . . . 93 250 336 329 355 Maximum Alert Level 4 | . 1 1 3 2 2 . . . . 1 2 2 2 4 Low Security (%) 39 | . 76 46 61 13 27 . . . . 82 45 . 28 19 Level 1 40 | . 23 53 14 86 61 . . . . 17 31 90 28 53 Level 2 18 | . . . 21 . 11 . . . . . 23 9 42 18 Level 3 1 | . . . 1 . . . . . . . . . . 7 Level 4 . | . . . . . . . . . . . . . . 1 Level 5 . | . . . . . . . . . . . . . . . High Security . | . . . . . . . . . . . . . . . Max Security . | . . . . . . . . . . . . . . . Squads Dispatched 65 | . 4 . 9 7 5 . . . 1 6 6 . 11 16 Investigation 13 | . 2 . 3 2 1 . . . . 1 2 . 1 1 Extermination 28 | . . . . 5 2 . . . . 5 . . 9 7 Reinforcement 17 | . 2 . 4 . 2 . . . . . 3 . 1 5 Assault 3 | . . . 1 . . . . . 1 . 1 . . . Garrison 4 | . . . 1 . . . . . . . . . . 3 Intercept . | . . . . . . . . . . . . . . . Searches Triggered . | . . . . . . . . . . . . . . . Data Miner Redirects 3 | . . . . . . . . . . 1 1 . 1 . Construction Impeded 6 | . . . . . 1 . . . . . 2 . 1 2 Haulers Reinforced . | . . . . . . . . . . . . . . . Active Scanning Responses . | . . . . . . . . . . . . . . . Cargo Convoy Interrupts . | . . . . . . . . . . . . . . . Stealth | -11 -10 -9 -8 -7 -6 -6 -6 -6 -5 -5 -5 -4 -3 -3 --------- Run | Jun Mat Mat Mat Fac Fac Low Low Dat Pro Fac Ext Fac Res Tes Distress Signals 21 | . 5 3 6 . . . . . . 1 4 . 1 1 Communications Jammed . | . . . . . . . . . . . . . . . Distress Signals . | . . . . . . . . . . . . . . . Times Spotted 368 | . 22 10 56 23 10 9 11 . 12 34 55 13 43 70 Peak Tracking Total 10 | . 6 4 7 5 3 6 4 . 5 5 6 8 4 10 Tactical Retreats 13 | . 1 1 4 . . . . . . 2 . 1 . 4 Traps | -11 -10 -9 -8 -7 -6 -6 -6 -6 -5 -5 -5 -4 -3 -3 ------- Run | Jun Mat Mat Mat Fac Fac Low Low Dat Pro Fac Ext Fac Res Tes Traps Triggered 8 | . . . 2 3 . . . . . 1 . . . 2 Indirectly . | . . . . . . . . . . . . . . . Trap Hack Attempts . | . . . . . . . . . . . . . . . Triggered . | . . . . . . . . . . . . . . . Disarmed . | . . . . . . . . . . . . . . . Reprogrammed . | . . . . . . . . . . . . . . . Reused . | . . . . . . . . . . . . . . . Traps Extracted . | . . . . . . . . . . . . . . . Installed . | . . . . . . . . . . . . . . . Triggered 1 | . . . . . . . . . 1 . . . . . Machines | -11 -10 -9 -8 -7 -6 -6 -6 -6 -5 -5 -5 -4 -3 -3 ---------- Run | Jun Mat Mat Mat Fac Fac Low Low Dat Pro Fac Ext Fac Res Tes Machines Disabled 28 | . . . . 2 10 1 . . 1 5 2 1 . 6 Max in Single Turn 2 | . . . . 1 2 1 . . 1 2 1 1 . 1 Garrison Access 2 | . . . . . 1 . . . . . . . 1 . Machines Repaired . | . . . . . . . . . . . . . . . Machines Sabotaged . | . . . . . . . . . . . . . . . Overloaded Fab Kills . | . . . . . . . . . . . . . . . Hacking | -11 -10 -9 -8 -7 -6 -6 -6 -6 -5 -5 -5 -4 -3 -3 --------- Run | Jun Mat Mat Mat Fac Fac Low Low Dat Pro Fac Ext Fac Res Tes Machines Accessed 60 | . 4 3 10 8 5 1 . 4 . 6 4 2 7 6 Terminals 32 | . 3 1 7 4 2 . . . . 3 4 1 3 4 Fabricators 9 | . . . . 3 1 . . . . 1 . 1 2 1 Repair Stations 4 | . . 2 1 . . . . . . 1 . . . . Recycling Units 6 | . 1 . 2 1 1 . . . . . . . 1 . Scanalyzers . | . . . . . . . . . . . . . . . Garrison Access 4 | . . . . . 1 . . . . 1 . . 1 1 Total Hacks 149 | . 12 6 24 14 10 1 . 31 . 11 10 4 10 16 Successful 71 | . 4 4 10 5 4 1 . 31 . 4 2 2 4 . Failed 78 | . 8 2 14 9 6 . . . . 7 8 2 6 16 Catastrophic 26 | . 2 1 5 4 3 . . . . 2 4 . 3 2 Database Lockouts . | . . . . . . . . . . . . . . . Manual 56 | . 8 2 10 8 7 1 . . . 5 1 2 6 6 Terminals 81 | . 10 2 20 10 4 . . . . 6 10 2 5 12 Fabricators 11 | . . . . 3 1 . . . . 1 . 2 2 2 Repair Stations 7 | . . 4 2 . . . . . . 1 . . . . Recycling Units 10 | . 2 . 2 1 3 . . . . . . . 2 . Scanalyzers . | . . . . . . . . . . . . . . . Garrison Access 8 | . . . . . 2 . . . . 3 . . 1 2 Terminal Hacks 48 | . 3 . 6 2 . 1 . 31 . 1 2 1 1 . Record 13 | . . . . . . . . 11 . . 1 . 1 . Part Schematic 11 | . . . . . . . . 11 . . . . . . Robot Schematic 6 | . . . . . . . . 6 . . . . . . Prototype ID Bank 3 | . . . . . . . . 3 . . . . . . Open Door 1 | . . . . . . 1 . . . . . . . . Level Access Points 4 | . 1 . 1 1 . . . . . 1 . . . . Branch Access Points 1 | . . . 1 . . . . . . . . . . . Terminal Index 1 | . . . 1 . . . . . . . . . . . Locate Traps 4 | . 1 . 1 . . . . . . . 1 1 . . Registered Components 2 | . 1 . 1 . . . . . . . . . . . Zone Layout 2 | . . . 1 1 . . . . . . . . . . Fabricator Hacks . | . . . . . . . . . . . . . . . Repair Station Hacks 6 | . . 4 2 . . . . . . . . . . . Scan Component 3 | . . 2 1 . . . . . . . . . . . Repair 3 | . . 2 1 . . . . . . . . . . . Recycling Unit Hacks 1 | . . . . . 1 . . . . . . . . . Retrieve Components 1 | . . . . . 1 . . . . . . . . . Scanalyzer . | . . . . . . . . . . . . . . . Garrison Access Hacks 1 | . . . . . . . . . . . . . 1 . Seal Access 1 | . . . . . . . . . . . . . 1 . Unauthorized Hacks 15 | . 1 . 2 3 3 . . . . 3 . 1 2 . Terminals 3 | . . . . 1 . . . . . 1 . . 1 . Botnet 3 | . . . . 1 . . . . . 1 . . 1 . Fabricators 5 | . . . . 1 1 . . . . 1 . 1 1 . Liberate 5 | . . . . 1 1 . . . . 1 . 1 1 . Repair Stations 1 | . . . . . . . . . . 1 . . . . Mechanics 1 | . . . . . . . . . . 1 . . . . Recycling Units 5 | . 1 . 2 1 1 . . . . . . . . . Monitor 1 | . . . . . 1 . . . . . . . . . Tunnel 4 | . 1 . 2 1 . . . . . . . . . . Scanalyzers . | . . . . . . . . . . . . . . . Garrison Access 1 | . . . . . 1 . . . . . . . . . Jam 1 | . . . . . 1 . . . . . . . . . Data Cores Recovered . | . . . . . . . . . . . . . . . Used . | . . . . . . . . . . . . . . . Hacking Detections 43 | . 4 1 6 6 5 . . . . 3 4 2 6 6 Full Trace Events 9 | . 2 . 1 1 . . . . . 1 2 . 1 1 Feedback Events 1 | . . . 1 . . . . . . . . . . . Corruption 1 | . . . 1 . . . . . . . . . . . Feedback Blocked . | . . . . . . . . . . . . . . . Robot Schematics Acquired 6 | . . . . . . . . 6 . . . . . . Robots Built . | . . . . . . . . . . . . . . . Authchips . | . . . . . . . . . . . . . . . Time . | . . . . . . . . . . . . . . . Total Robot Build Rating . | . . . . . . . . . . . . . . . Part Schematics Acquired 11 | . . . . . . . . 11 . . . . . . Parts Built . | . . . . . . . . . . . . . . . Authchips . | . . . . . . . . . . . . . . . Time . | . . . . . . . . . . . . . . . Total Part Build Rating . | . . . . . . . . . . . . . . . Parts Repaired 3 | . . 2 1 . . . . . . . . . . . Time 84 | . . 52 32 . . . . . . . . . . . Parts Recycled . | . . . . . . . . . . . . . . . Recycled Matter . | . . . . . . . . . . . . . . . Retrieved Matter . | . . . . . . . . . . . . . . . Retrieved Components 2 | . . . . . 2 . . . . . . . . . Parts Scanalyzed . | . . . . . . . . . . . . . . . Part Schematics Acquired . | . . . . . . . . . . . . . . . Parts Damaged . | . . . . . . . . . . . . . . . Bothacking | -11 -10 -9 -8 -7 -6 -6 -6 -6 -5 -5 -5 -4 -3 -3 ------------ Run | Jun Mat Mat Mat Fac Fac Low Low Dat Pro Fac Ext Fac Res Tes Used RIF Installer . | . . . . . . . . . . . . . . . Robots Hacked . | . . . . . . . . . . . . . . . Non-combat . | . . . . . . . . . . . . . . . Combat . | . . . . . . . . . . . . . . . Robot Hacks Applied . | . . . . . . . . . . . . . . . Relay Couplers Released 7 | . . . . . . . . . . . . . 3 4 Machine Destruction 3 | . . . . . . . . . . . . . 3 . Programmers 4 | . . . . . . . . . . . . . . 4 Fabnet Peak Effective % . | . . . . . . . . . . . . . . . Robots Rewired 23 | . . . . . . . . . . . 23 . . . Allies Hacked . | . . . . . . . . . . . . . . . Hacks Repelled . | . . . . . . . . . . . . . . . Allies | -11 -10 -9 -8 -7 -6 -6 -6 -6 -5 -5 -5 -4 -3 -3 -------- Run | Jun Mat Mat Mat Fac Fac Low Low Dat Pro Fac Ext Fac Res Tes Total Allies 37 | . . . . . . . . . 1 . 30 . 6 . Largest Group 9 | . . . . . . . . . . . 9 5 3 . Highest-Rated Group 297 | . . . . . . . . . . . 297 149 141 . Highest-Rated Ally 159 | . . . . . . . . . . . 159 31 47 . Total Orders 10 | . . . . . . . . . 7 3 . . . . ROAM 1 | . . . . . . . . . 1 . . . . . EXPLORE 6 | . . . . . . . . . 4 2 . . . . RETURN 3 | . . . . . . . . . 2 1 . . . . Ally Attacks 275 | . . . . . . . . . 1 . 220 39 15 . Total Damage 6353 | . . . . . . . . . 501 . 4871 510 471 . Kills 45 | . . . . . . . . . 1 . 39 2 3 . Allies Corrupted . | . . . . . . . . . . . . . . . Allies Melted 2 | . . . . . . . . . 1 . . . 1 . Intel | -11 -10 -9 -8 -7 -6 -6 -6 -6 -5 -5 -5 -4 -3 -3 ------- Run | Jun Mat Mat Mat Fac Fac Low Low Dat Pro Fac Ext Fac Res Tes Robot Analysis Total . | . . . . . . . . . . . . . . . Derelict Logs Recovered 3 | . . . . . . 1 . . 2 . . . . . Drone Launches 8 | . . . . . . . . . 5 3 . . . . Drone Recoveries 7 | . . . . . . . . . 4 3 . . . . Decoded 0b10 Intel 371 | . . . . . . . . . . 63 67 28 134 79 Items 371 | . . . . . . . . . . 63 67 28 134 79 Exploration | -11 -10 -9 -8 -7 -6 -6 -6 -6 -5 -5 -5 -4 -3 -3 ------------- Run | Jun Mat Mat Mat Fac Fac Low Low Dat Pro Fac Ext Fac Res Tes Turns Passed 25641 | . 554 411 3260 2928 1751 866 967 163 1528 2694 2525 377 4421 3196 Spaces Moved 11055 | 1 280 226 1427 1376 853 422 565 105 498 1134 1096 196 1930 946 Core 15 | . . . . . . . . . . 13 2 . . . Treads 8583 | . 174 23 974 1376 853 422 565 105 77 10 932 196 1930 946 Legs 529 | 1 106 . 344 . . . . . . . 78 . . . Wheels 1089 | . . 203 109 . . . . . 421 356 . . . . Hover 839 | . . . . . . . . . . 755 84 . . . Flight . | . . . . . . . . . . . . . . . Fastest Speed 40 | 120 120 115 115 145 148 148 148 151 140 40 151 160 163 160 Average Speed 154 | 120 144 127 148 145 148 148 150 151 148 135 174 160 171 168 Slowest Speed 1000 | 120 160 240 330 148 148 148 153 151 305 750 1000 240 240 175 Overloaded Moves . | . . . . . . . . . . . . . . . Propulsion Burnouts . | . . . . . . . . . . . . . . . Robots Hopped . | . . . . . . . . . . . . . . . Cave-ins Triggered 1 | . . . 1 . . . . . . . . . . . Exploration Rate (%) 47 | 2 48 29 89 45 18 59 63 71 63 19 92 6 30 84 Regions Visited 14 Branch Regions 6 Pre-discovered Areas 5 | . 1 . 2 1 . . . 1 . . . . . . Known Exits Taken 12 | . 1 . 1 1 1 1 1 1 1 1 1 1 1 . Unknown Exits Taken 2 | 1 . 1 . . . . . . . . . . . . Scrap Searched 5 | . . . . . . 1 2 . 2 . . . . . Spaces Dug 304 | . . . 25 74 34 16 2 . 17 46 20 . 43 27 Terrain Destroyed 784 | . . . 46 77 93 53 7 . 50 169 41 3 53 192 Melee 243 | . . . 25 74 34 7 2 . 17 16 2 . 43 23 Projectile 118 | . . . . 3 3 16 5 . 5 47 9 3 10 17 AOE 423 | . . . 21 . 56 30 . . 28 106 30 . . 152 Terrain Rammed . | . . . . . . . . . . . . . . . Walls Destroyed . | . . . . . . . . . . . . . . . Machines Disabled . | . . . . . . . . . . . . . . . Actions | -11 -10 -9 -8 -7 -6 -6 -6 -6 -5 -5 -5 -4 -3 -3 --------- Run | Jun Mat Mat Mat Fac Fac Low Low Dat Pro Fac Ext Fac Res Tes Total 17645 | . 356 304 2336 2096 1234 623 636 110 1225 2072 1528 230 2763 2132 Wait 4518 | . 22 40 609 530 240 151 25 . 669 716 71 13 559 873 Move 11041 | . 279 225 1426 1375 852 421 564 104 497 1133 1095 195 1929 946 Hop . | . . . . . . . . . . . . . . . Pick Up 122 | . 9 4 30 9 14 5 5 1 5 6 10 . 14 10 Fast Attach 161 | . 1 3 14 4 7 2 . . 5 37 28 5 27 28 Attach 79 | . 2 2 9 3 8 3 6 4 3 13 6 1 5 14 Detach 49 | . . . 4 . 5 1 1 . 3 9 6 1 9 10 Swap 274 | . 3 1 58 47 28 9 13 . 6 13 6 . 52 38 Drop 183 | . . 3 55 14 16 7 . 1 3 10 9 3 40 22 Fire 686 | . 40 26 104 32 22 16 18 . 15 114 66 12 78 143 Melee 308 | . . . 27 82 42 8 4 . 19 20 21 . 50 35 Ram 1 | . . . . . . . . . . 1 . . . . Kick . | . . . . . . . . . . . . . . . Crush 1 | . . . . . . . . . . . . . . 1 Escape Stasis 12 | . . . . . . . . . . . . . . 12 Rewire 210 | . . . . . . . . . . . 210 . . . Trap . | . . . . . . . . . . . . . . . Miscellaneous . | . . . . . . . . . . . . . . . Route ------- -11/Junkyard -10/Materials (discovered 4 exits: *Mat x3 / [*Min]) -9/Materials -8/Materials (discovered 3 exits: *Fac x3) -7/Factory (discovered 4 exits: *Fac x4) -6/Factory -6/Lower Caves -6/Lower Caves (discovered 2 exits: *Fac / *Dat) -6/Data Miner -5/Proximity Caves -5/Factory (discovered 5 exits: Fac x4 / *Ext) -5/Extension (discovered 2 exits: *Fac / *Cet) -4/Factory -3/Research (discovered 2 exits: *Arm / *Tes) -3/Testing (discovered 1 exit: [*Res]) History --------- Turn | Location | Event 1 | -11/Junkyard | Discovered new exit (range 0) 1 | -11/Junkyard | Entered Materials 231 | -10/Materials | Discovered new exit (range 15) 304 | -10/Materials | Build established: Mutant 487 | -10/Materials | Discovered new exit (range 15) 526 | -10/Materials | Identified exit to Materials 555 | -10/Materials | Entered another Materials area 555 | -9/Materials | Evolved 2 slots: Propulsion x2 595 | -9/Materials | Repaired Lgt. Treads 800 | -9/Materials | Repaired Lgt. Treads 951 | -9/Materials | Discovered new exit (range 6) 966 | -9/Materials | Entered another Materials area 966 | -8/Materials | Evolved 2 slots: Utility x2 1276 | -8/Materials | Repaired Hvy. Assault Rifle 1918 | -8/Materials | Lost 3 parts (2p1w) 2099 | -8/Materials | Discovered new exit (range 5) 2104 | -8/Materials | Identified exit to Factory 2608 | -8/Materials | Crushed by falling debris 2639 | -8/Materials | Lost 3 parts (2u1w) 3029 | -8/Materials | Discovered exit to Factory (range 3) 3324 | -8/Materials | Destroyed 8 combat bots 3755 | -8/Materials | Garrison activated, responded to threat 4166 | -8/Materials | First assault squad dispatched 4226 | -8/Materials | Entered Factory 4226 | -7/Factory | Evolved 2 slots: Utility x1, Weapon x1 6144 | -7/Factory | Identified exit to Factory 7154 | -7/Factory | Entered another Factory area 7154 | -6/Factory | Evolved 2 slots: Propulsion x1, Utility x1 8071 | -6/Factory | Build established: Assassin 8458 | -6/Factory | Discovered new exit (range 8) 8467 | -6/Factory | Identified exit to Lower Caves 8905 | -6/Factory | Entered Lower Caves 8935 | -6/Lower Caves | Identified exit to Lower Caves 9028 | -6/Lower Caves | Acquired the password to a Derelict Tinkerer's latest research 9040 | -6/Lower Caves | Found Prototype Special Weapon 9040 | -6/Lower Caves | Identified Molecular Deconstructor 9516 | -6/Lower Caves | Caught by Unaware searching for contraband prototypes 9517 | -6/Lower Caves | Caught by Unaware searching for contraband prototypes 9771 | -6/Lower Caves | Entered another Lower Caves area 9779 | -6/Lower Caves | Discovered new exit (range 7) 10552 | -6/Lower Caves | Lost 5 parts (1p2n1u1w) 10624 | -6/Lower Caves | Discovered new exit (range 12) 10637 | -6/Lower Caves | Identified exit to Data Miner 10715 | -6/Lower Caves | Attracted the attention of an 0b10 checkpoint 10738 | -6/Lower Caves | Entered Data Miner 10739 | -6/Data Miner | Discovered new exit (range 6) 10748 | -6/Data Miner | Identified exit to Proximity Caves 10769 | -6/Data Miner | Met Data Miner 10802 | -6/Data Miner | Learned location of Section 7 (-2) 10802 | -6/Data Miner | Acquired the access code to Warlord's prototype stash 10834 | -6/Data Miner | Received God Mode back door access code from Data Miner 10901 | -6/Data Miner | Entered Proximity Caves 10903 | -5/Proximity Caves | Attracted the attention of an 0b10 outpost 10950 | -5/Proximity Caves | Lost 3 parts (1n1u1w) 11018 | -5/Proximity Caves | Escorted by Enhanced Grunt 11071 | -5/Proximity Caves | Lost 3 parts (3n) 12039 | -5/Proximity Caves | Learned 4 Factory zone layouts 12053 | -5/Proximity Caves | Learned Factory security intel 12172 | -5/Proximity Caves | Discovered new exit (range 15) 12371 | -5/Proximity Caves | Build established: Mutant 12428 | -5/Proximity Caves | Identified exit to Factory 12429 | -5/Proximity Caves | Entered Factory 12429 | -5/Factory | Evolved 2 slots: Power x1, Propulsion x1 12754 | -5/Factory | Build established: Scavenger-Assassin 13169 | -5/Factory | System corruption reached 10% 13219 | -5/Factory | Lost 5 parts (3n1u1w) 13490 | -5/Factory | Build established: Scavenger-Mutant 13867 | -5/Factory | Lost 10 parts (3p2n2u3w) 14070 | -5/Factory | Discovered new exit (range 5) 14073 | -5/Factory | Identified exit to Extension 14304 | -5/Factory | Incoming investigation squad redirected 14637 | -5/Factory | System corruption reached 30% 14641 | -5/Factory | Core integrity fell below 50% 14675 | -5/Factory | Lost 11 parts (1p5n2u3w) 14808 | -5/Factory | Identified exit to Factory 14883 | -5/Factory | Build established: Mutant 15123 | -5/Factory | Entered Extension 15241 | -5/Extension | Build established: Scavenger-Mutant 15259 | -5/Extension | Core integrity fell below 20% 15317 | -5/Extension | Lost 4 parts (1n2u1w) 15585 | -5/Extension | Build established: Scavenger-Gunner 15656 | -5/Extension | Lost 6 parts (1p2n3w) 15944 | -5/Extension | Rescued a captive Derelict 15945 | -5/Extension | Rescued a captive Derelict 15951 | -5/Extension | Build established: Scavenger-Mutant 16274 | -5/Extension | Rescued A7 16280 | -5/Extension | Spotted B-75 Beast 16292 | -5/Extension | Spotted B-75 Beast 16308 | -5/Extension | Allies destroyed B-75 Beast 16322 | -5/Extension | Allies destroyed B-75 Beast 16398 | -5/Extension | Disrupted transfer network 17012 | -5/Extension | Incoming investigation squad redirected 17146 | -5/Extension | Rescued a captive Derelict 17223 | -5/Extension | First assault squad dispatched 17314 | -5/Extension | Extracted ID and sensor layout for unrecognized location from A7's data core 17336 | -5/Extension | Found Prototype Protection 17336 | -5/Extension | Identified Med. Regenerative Plating 17473 | -5/Extension | Rescued a captive Derelict 17503 | -5/Extension | Rescued a captive Derelict 17503 | -5/Extension | Rescued a captive Derelict 17623 | -5/Extension | Discovered exit to Factory (range 10) 17624 | -5/Extension | Discovered new exit (range 6) 17637 | -5/Extension | Identified exit to Cetus 17648 | -5/Extension | Entered Factory 17648 | -4/Factory | Accompanied by 5 allies 17648 | -4/Factory | Evolved 2 slots: Utility x1, Weapon x1 17748 | -4/Factory | Build established: Scavenger-Gunner 17919 | -4/Factory | Discovered new exit (range 16) 17943 | -4/Factory | Identified exit to Research 17976 | -4/Factory | P-70 Sage assimilated allied O1-JW7(g) 18025 | -4/Factory | Entered Research 18025 | -3/Research | Evolved 2 slots: Utility x2 18306 | -3/Research | Build established: Scavenger-Mutant 18954 | -3/Research | Found Unknown Device 18954 | -3/Research | Identified Quantum Capacitor 19001 | -3/Research | Build established: Scavenger-Skirmisher 19844 | -3/Research | Build established: Scavenger-Tank 20002 | -3/Research | Discovered new exit (range 3) 20006 | -3/Research | Identified exit to Armory 20699 | -3/Research | Found Prototype Launcher 20699 | -3/Research | Identified Hellfire Missile Launcher 20700 | -3/Research | System corruption reached 10% 20971 | -3/Research | Build established: Scavenger-Skirmisher 21835 | -3/Research | Discovered new exit (range 3) 21838 | -3/Research | Identified exit to Testing 22172 | -3/Research | Incoming investigation squad redirected 22446 | -3/Research | Entered Testing 22596 | -3/Testing | Build established: Scavenger-Assassin 22754 | -3/Testing | Found Prototype Launcher 22754 | -3/Testing | Identified Com. Tesla Bomb Launcher 23058 | -3/Testing | Spotted PX-AADJP16SD4 23065 | -3/Testing | Build established: Scavenger-Tank 23600 | -3/Testing | Spotted PG-YBEE0FWGXJ 23785 | -3/Testing | Build established: Scavenger-Assassin 24418 | -3/Testing | System corruption reached 30% 25266 | -3/Testing | Garrison activated, responded to threat 25282 | -3/Testing | Core integrity fell below 50% 25306 | -3/Testing | Lost 4 parts (1n1u2w) 25545 | -3/Testing | Discovered new exit (range 15) 25557 | -3/Testing | Build established: Scavenger-Mutant 25586 | -3/Testing | Scanned by Researcher 25607 | -3/Testing | Core integrity fell below 20% 25621 | -3/Testing | Found Med. Regenerative Plating 25628 | -3/Testing | Found Prototype Protection 25628 | -3/Testing | Identified Hvy. Regenerative Plating 25638 | -3/Testing | Found Lgt. Regenerative Plating 25642 | -3/Testing | Destroyed by H-77 Assassin with Coil Gun Last Messages --------------- 25626_ Slug penetrates Reinforced Barrier. 25627_ Held in stasis. 25627_ C-55 Analyst is analyzing... 25628_ Acquired Prototype Protection. 25628_ Identified Hvy. Regenerative Plating. 25628_ Slug penetrates Reinforced Barrier. 25631_ Held in stasis. 25631_ C-55 Analyst is analyzing... 25632_ Penetrated by Slug. 25632_ Critical hit (Destroy). 25633_ Slug penetrates Reinforced Barrier. 25634_ Slammed into C-55 Analyst. 25635_ Penetrated by Slug. 25635_ Held in stasis. 25635_ C-55 Analyst is analyzing... 25637_ Slug penetrates Reinforced Shell. 25638_ Acquired Lgt. Regenerative Plating. 25641_ Penetrated by Slug. 25641_ Critical hit (Destroy). 25642_ Slug penetrates Reinforced Shell. Map ----- +----------------------------------------------------+ | ??????????????## """ """ ##???????????????? | | ??????????????## """ """ ##???????????????? | | ??????????????## # """ """ ##???????????????? | | ????????####### # ##???????????????? | | ???????########## +#####"##???????????????? | | ???????## ###???????????????? | | ???????## """ ###???????????????? | | ???????## """ ##????????????????? | | ???????## """ ##????????????????? | | ???????## %! = ##????????????????? | | ???????# [ # % %= ##????????????????? | | ???????## " " # % ##????????????????? | | ???????# ""G"" # [= ##????????????????? | | ??????## # ** "! ##????????????????? | | ??????## # #### *! "####"#####?####???????????? | | ??????### # ## ################???????????? | | ??????### # # #### ##???????????? | | ????????# # # # # ###???????????? | | ???????# ####????????????? | | ##?????# """" [ %* ####??????????????? | | ##?????# """"" =%= # #???????????????? | | ##?????# """ # " "###?????????????????? | | ##?????#???? ## ###?????????????????? | | ##??????????? ###T ##??????????????????? | | ##??????????? ###"" ###??????????????????? | | ##?????????"" ! ###@gh ##??????????????????? | | ##?????????### # ########???????????????????? | | ##?????????#### ##?#####???????????????????? | | ##?????????????? ???????????????????????????? | | ##????????????? < ???????????????????????????? | | ##???????????## #??????????????????????????? | | ##???????????#####+####??????????????????????????? | | ##???????????# """ """ ??????????????????????????? | | ##???????????????????????????????????????????????? | | ##???????????????????????????????????????????????? | | ?????????????????????????????????????????????????? | | ???????????????????=?????????????????????????????? | | ??????????????????????[??????????????????????????? | | ????????????????????!????????????????????????????? | | ?????????????????????????????????????????????????? | | ?????????????????????????????????????????????????? | | ?????????????????????????????????????????????????? | | | | | | | | | | | | | | | | | +----------------------------------------------------+ Best States ------------- Heat Dissipation 75 Energy Generation 41 Energy Capacity 920 Matter Stores 620 Matter Capacity 700 Sight Range 22 Robot Scan Range 18 Terrain Scan Range 16 Terrain Scan Density 10 Armor Coverage 900 Phase Shifting 5 Evasion (%) 55 Launcher Accuracy 40 Target Analysis 8 Recoil Reduction 6 Matter Filtering 30 Kinecelleration 40 Offensive Hacking 10 Authchip Count 1 Item Schematics ----------------- Combat Drone Bay | -6/Data Miner | Free Lgt. Regenerative Plating | -6/Data Miner | Free Enh. Flexi-carbon Leg | -6/Data Miner | Free Imp. Thermal Defense Suite | -6/Data Miner | Free Ionic Axe | -6/Data Miner | Free Adv. VSS Leg | -6/Data Miner | Free Lrn. Terrain Scanner | -6/Data Miner | Free Hvy. Gauss Cannon | -6/Data Miner | Free Tesla Rifle | -6/Data Miner | Free Adv. Focal Shield | -6/Data Miner | Free Biometal Medium Treads | -6/Data Miner | Free Robot Schematics ------------------ Y-64 Sentinel | -6/Data Miner | Free R-10 Processor | -6/Data Miner | Free E-15 Imp | -6/Data Miner | Free B-48 Gladiator | -6/Data Miner | Free A-15 Conveyor | -6/Data Miner | Free M-30 Cleanser | -6/Data Miner | Free Fabricated ------------ Nothing Alien Tech Used ----------------- None Achievements -------------- Can't Touch This Challenges ------------ None Game ------ Seed SupersonicDiametricStorage Manual? 0 Play Time 06:12:28 Cumulative 560.0 hours Start 2023.12.19 @ 11:01:23 End 2023.12.20 @ 11:25:36 Sessions 17 Manual Loads 0 Difficulty Rogue Special Mode None Game No. 80 Rogue 63 Adventurer 17 Explorer 0 Win Type - Total 1 Types 1/0/0/0/0/0/0/0/0 Lore% 53 Gallery% 64 Achievement% 54 Wizard Run 0 Options --------- ASCII 0 Keyboard 1 Movement Vi Keybinds 0 Fullscreen 1 Font 18/SmallcapsGlow Map View 76x50 Tactical HUD 1 Map Filters NONE Filters NONE Steam 1 RUN: 645bc376-1774-485a-ae36-b453edc30928